bitfinex/quotes_ETHUSD_20250814
["timestamp","ask_amount","ask_price","bid_price","bid_amount"]
[1755210584997,0.002,4524.1,4523.9,3.52]
[1755210585202,0.002,4524.1,4524.0,2.21043324]
[1755210585402,0.002,4524.1,4524.0,2.32083324]
[1755210585605,0.002,4524.1,4524.0,2.87083324]
[1755210585803,0.002,4524.1,4524.0,3.32573324]
[1755210586531,0.002,4524.1,4524.0,3.6304]
[1755210587102,0.002,4524.1,4524.0,0.1104]
[1755210587307,1.8937,4524.1,4524.0,3.519]
[1755210587828,0.002,4524.1,4524.0,3.519]
[1755210590245,0.002,4524.1,4524.0,5.72943324]
[1755210591850,0.002,4524.1,4524.0,7.53837448]
[1755210592051,0.002,4524.1,4524.0,9.01087448]
[1755210593725,0.002,4524.1,4523.8,0.1104]
[1755210593926,0.002,4524.1,4524.0,3.518]
[1755210594446,0.002,4524.1,4524.0,7.768]
[1755210594752,0.002,4524.1,4524.0,9.97843324]
[1755210595073,0.002,4524.1,4524.0,10.43233324]
[1755210595975,0.002,4524.1,4524.0,10.98233324]
[1755210596128,0.002,4524.1,4524.0,10.63883324]
[1755210596332,0.002,4524.1,4524.0,11.09273324]
[1755210596534,0.002,4524.1,4524.0,13.89555945]
[1755210598028,1e-08,4524.4,4524.2,2.21033552]
[1755210598232,0.002,4524.6,4524.5,2.76018897]
[1755210598457,0.002,4524.6,4524.5,2.87058897]
[1755210598665,0.002,4524.6,4524.5,9.01372142]
[1755210600366,0.002,4524.6,4524.5,5.49772142]
[1755210600567,0.002,4524.6,4524.5,7.08732142]
[1755210600869,0.002,4524.6,4524.5,6.38658897]
[1755210601242,0.002,4524.6,4524.5,8.31298897]
[1755210602374,0.002,4524.6,4524.5,3.6254]
[1755210602575,0.002,4524.6,4524.5,5.83558897]
[1755210602969,0.002,4524.6,4524.5,6.38558897]
[1755210603170,0.002,4524.6,4524.5,9.17157637]
[1755210605456,0.003,4525.1,4524.8,0.55]
[1755210605647,0.003,4525.1,4524.8,6.38544243]
[1755210605841,0.003,4525.1,4524.8,8.31184243]
[1755210606081,1e-08,4525.1,4525.0,2.75994475]
[1755210606293,1e-08,4525.3,4525.2,2.75984707]
[1755210606480,0.003,4526.4,4525.2,26.42015221]
[1755210606654,0.003,4526.4,4526.3,2.75931003]
[1755210606861,0.003,4526.4,4526.3,6.38371003]
[1755210607048,0.003,4526.4,4526.3,6.83761003]
[1755210607551,0.003,4526.4,4526.3,7.88955911]
[1755210607885,0.003,4526.4,4526.3,4.1744]
[1755210608083,0.4464,4526.4,4526.3,0.1104]
[1755210608384,1.9312,4526.4,4526.1,3.514]
[1755210608581,1.9312,4526.4,4526.2,3.514]
[1755210608751,1.9312,4526.4,4526.0,0.1104]
[1755210608752,1.9282,4526.3,4526.0,0.1104]
[1755210609079,1.9282,4526.3,4524.7,2.21005789]
[1755210609080,2.20936209,4526.2,4525.9,3.514]
[1755210609379,1.9282,4526.1,4525.7,0.1104]
[1755210609545,1.9282,4526.1,4525.8,3.513]
[1755210609747,0.4464,4526.4,4525.8,3.513]
[1755210610361,0.003,4526.4,4526.2,0.1104]
[1755210610562,0.003,4526.4,4526.3,2.75931003]
[1755210610762,0.003,4526.4,4526.3,0.1104]
[1755210610967,0.003,4526.4,4526.3,3.6234]
[1755210611887,1.9312,4526.4,4526.3,3.6234]
[1755210612091,1.9312,4526.4,4526.3,0.1104]
[1755210612289,4.14046122,4526.4,4526.3,3.6234]
[1755210612656,4.14046122,4526.4,4526.3,0.1104]
[1755210612960,2.20944349,4526.1,4526.0,3.512]
[1755210613153,2.20968544,4525.6,4525.5,3.512]
[1755210613358,1.9282,4525.6,4525.5,3.512]
[1755210613586,2.20961377,4525.7,4525.5,3.512]
[1755210614195,2.20970058,4525.5,4525.4,0.1104]
[1755210614367,1.9282,4525.6,4525.0,0.1104]
[1755210614567,2.20985395,4525.2,4525.0,0.1104]
[1755210614790,0.1104,4525.7,4525.0,3.6224]
[1755210614970,5.21226132,4526.4,4525.1,0.55]
[1755210614971,1.4848,4526.1,4525.1,0.55]
[1755210615167,2.31984273,4526.1,4525.3,2.32015754]
[1755210615367,2.31984273,4526.1,4525.4,3.512]
[1755210615569,0.003,4526.4,4525.4,5.72173968]
[1755210615767,0.003,4526.4,4525.9,0.1104]
[1755210615967,0.003,4526.4,4526.3,0.1104]
[1755210616194,0.003,4526.4,4526.3,0.6604]
[1755210616861,0.003,4526.4,4526.3,4.9104]
[1755210617293,0.003,4526.4,4526.3,3.6224]
[1755210617794,0.003,4526.4,4526.3,5.83171003]
[1755210618299,0.003,4526.4,4526.3,11.61386595]
[1755210618468,0.003,4526.4,4526.3,11.15996595]
[1755210618658,0.003,4526.4,4526.3,10.52131003]
[1755210618860,0.003,4526.4,4526.3,10.63171003]
[1755210619904,0.003,4526.4,4526.3,12.55811003]
[1755210621767,0.003,4526.4,4526.3,8.30811003]
[1755210622105,0.002,4526.9,4526.8,2.759066]
[1755210622267,0.002,4526.9,4526.8,6.76588613]
[1755210622462,0.002,4526.9,4526.8,8.75318613]
[1755210623302,0.002,4527.8,4527.0,0.55]
[1755210623516,0.002,4527.8,4527.5,2.86912446]
[1755210623816,1e-08,4527.6,4527.5,6.4012117]
[1755210623965,1e-08,4527.6,4527.5,7.24012505]
[1755210624288,1e-08,4527.6,4527.5,9.11702505]
[1755210624492,1e-08,4527.8,4527.7,2.75862689]
[1755210624878,1e-08,4527.8,4527.7,4.74592689]
[1755210625838,1e-08,4527.8,4527.7,7.74592689]
[1755210626032,0.7485,4530.3,4529.9,0.55]
[1755210626342,0.7485,4530.3,4529.9,3.509]
[1755210626343,1.9268,4530.2,4529.9,3.509]
[1755210626484,2.20745678,4530.1,4529.9,3.509]
[1755210626690,2.20745678,4530.1,4530.0,0.1104]
[1755210626986,2.20745678,4530.1,4529.3,0.55]
[1755210626987,2.31790551,4530.0,4529.4,3.6194]
[1755210627191,2.20774919,4529.5,4529.4,0.1104]
[1755210627587,4.13454919,4529.5,4529.4,0.1104]
[1755210628105,4.13454919,4529.5,4528.9,0.1104]
[1755210628106,2.20803465,4529.0,4528.9,0.1104]
[1755210628423,2.20749979,4530.1,4528.9,0.1104]
[1755210628424,0.70603069,4530.2,4529.5,0.55]
[1755210628716,2.0372,4530.6,4529.5,0.55]
[1755210628880,2.95586647,4530.3,4529.9,0.1104]
[1755210629085,0.4433,4530.2,4529.9,0.1104]
[1755210629483,2.95589115,4530.3,4529.9,3.6184]
[1755210629692,0.7485,4530.3,4529.9,3.6184]
[1755210630796,2.20744639,4530.2,4529.5,0.55]
[1755210630996,2.20744639,4530.2,4528.8,1.4424]
[1755210630997,2.2075752,4529.9,4529.6,3.508]
[1755210631297,2.20745678,4530.1,4530.0,0.1104]
[1755210631618,2.20755425,4529.9,4529.8,0.1104]
[1755210631924,1.9268,4530.2,4529.8,0.1104]
[1755210632120,2.20754419,4530.0,4529.8,0.1104]
[1755210632293,0.4433,4530.2,4529.8,0.1104]
[1755210632635,2.20755425,4529.9,4529.8,0.1104]
[1755210632840,4.13435425,4529.9,4529.8,0.1104]
[1755210633026,2.20770984,4529.6,4529.1,4.058]
[1755210633428,2.20770984,4529.6,4529.5,0.1104]
[1755210633606,0.8589,4530.3,4529.5,0.1104]
[1755210633607,0.4433,4530.2,4529.5,0.1104]
[1755210633808,2.20770045,4529.6,4529.5,0.1104]
[1755210634444,1.9268,4529.6,4528.8,3.507]
[1755210634642,2.20797018,4529.1,4529.0,0.1104]
[1755210635043,2.20778723,4529.5,4529.0,0.1104]
[1755210635247,0.1104,4529.7,4529.0,0.1104]
[1755210635248,2.20794418,4529.1,4529.0,0.1104]
[1755210635618,4.13474418,4529.1,4529.0,0.1104]
[1755210635820,4.13474418,4529.1,4527.2,1.4424]
[1755210635821,1.9268,4529.1,4527.2,1.4424]
[1755210636011,2.20828879,4528.4,4528.2,0.1104]
[1755210636208,2.20833425,4528.3,4528.2,0.1104]
[1755210636445,4.13513425,4528.3,4528.2,0.1104]
[1755210636744,2.20859957,4527.8,4527.3,3.507]
[1755210636944,0.1104,4528.6,4527.9,0.1104]
[1755210637246,2.20849265,4528.0,4527.7,0.1104]
[1755210637462,0.4433,4527.9,4526.8,0.49682013]
[1755210637756,2.20866781,4527.7,4527.5,0.1104]
[1755210637909,2.2084862,4528.0,4526.7,3.507]
[1755210638110,2.2084862,4528.0,4527.1,0.1104]
[1755210638111,2.20886822,4527.3,4527.1,0.1104]
[1755210638359,2.20887082,4527.2,4527.1,0.1104]
[1755210638814,3.0,4527.7,4526.8,0.001]
[1755210639015,2.20896841,4527.0,4526.8,0.001]
[1755210639209,2.2090172,4526.9,4526.8,0.001]
[1755210640244,2.20892249,4527.1,4526.8,0.1114]
[1755210640445,2.2090172,4526.9,4526.8,0.1114]
[1755210640811,0.1104,4527.5,4526.8,0.1114]
[1755210641249,2.31914916,4527.5,4526.8,0.1114]
[1755210641453,2.20877324,4527.4,4526.8,0.1114]
[1755210641635,2.20882875,4527.3,4526.8,0.1114]
[1755210642145,2.20887891,4527.2,4526.8,0.1114]
[1755210643048,2.20893817,4527.1,4526.8,0.1114]
[1755210643243,2.20896887,4527.0,4526.8,0.1114]
[1755210643553,2.2090172,4526.9,4526.8,0.1114]
[1755210643865,4.1358172,4526.9,4526.8,0.001]
[1755210645448,7.1358172,4526.9,4526.8,0.001]
[1755210645756,38.20424358,4526.9,4526.8,0.001]
[1755210645919,37.60861289,4526.9,4526.8,0.001]
[1755210646451,3.0,4526.8,4525.3,0.001]
[1755210646653,2.32014941,4525.4,4525.3,0.001]
[1755210646827,8.82714941,4525.4,4525.3,0.001]
[1755210647027,11.2267451,4525.4,4525.3,0.001]
[1755210647967,7.7197451,4525.4,4525.3,0.001]
[1755210648127,3.1104,4525.4,4525.3,0.001]
[1755210648336,5.32014941,4525.4,4525.3,0.001]
[1755210648868,0.1104,4525.4,4525.3,0.001]
[1755210649251,2.32014941,4525.4,4525.3,0.001]
[1755210649457,3.0,4525.9,4525.3,0.001]
[1755210649752,3.0,4525.9,4525.3,1.9883]
[1755210649916,5.71746707,4526.0,4525.3,1.9883]
[1755210650121,2.20950945,4525.9,4525.3,1.9883]
[1755210650528,3.508,4526.0,4525.3,0.1114]
[1755210650734,0.1104,4525.6,4525.3,0.001]
[1755210650929,3.6174,4525.6,4525.3,0.001]
[1755210651133,2.20974941,4525.4,4525.3,0.001]
[1755210651750,3.6174,4525.6,4525.3,0.001]
[1755210652140,0.1104,4525.6,4525.3,0.001]
[1755210652353,3.508,4526.0,4525.4,3.96851006]
[1755210652658,2.20921499,4526.5,4525.4,4.07891006]
[1755210652659,0.1104,4526.1,4525.4,4.07891006]
[1755210653943,0.1104,4526.1,4525.5,6.45969178]
[1755210654660,0.1104,4526.1,4525.7,2.20960293]
[1755210654958,2.20922111,4526.5,4525.7,2.20959901]
[1755210655264,0.1104,4526.4,4525.8,4.07874859]
[1755210655421,0.1104,4526.4,4525.8,1.8692]
[1755210655760,2.31966247,4526.4,4525.8,1.8692]
[1755210656056,0.1104,4526.4,4525.8,1.8692]
[1755210656242,2.31966891,4526.4,4525.8,1.8692]
[1755210656647,0.1104,4526.4,4525.9,0.4465]
[1755210656848,3.0,4526.7,4526.0,1.7588]
[1755210657048,0.1104,4526.7,4526.0,1.8692]
[1755210657359,2.20896892,4527.0,4526.6,0.1104]
[1755210657561,0.1104,4527.2,4526.8,2.20902806]
[1755210657730,0.1124,4527.4,4526.9,1.7588]
[1755210657925,0.1124,4527.4,4526.9,1.8692]
[1755210658125,0.1124,4527.4,4527.0,1.7588]
[1755210659140,2.3212114,4527.4,4527.0,1.7588]
[1755210659444,2.3212114,4527.4,4526.9,0.1104]
[1755210659445,2.20882203,4527.3,4526.9,0.1104]
[1755210659622,0.1124,4527.4,4526.9,0.1104]
[1755210660027,2.20902179,4526.9,4526.6,0.1104]
[1755210660463,3.507,4527.2,4526.6,0.1104]
[1755210660662,2.2091148,4526.7,4526.6,0.1104]
[1755210661028,5.4902,4526.7,4525.9,0.1104]
[1755210661330,5.4902,4526.7,4525.3,0.4475]
[1755210661331,0.1104,4526.2,4525.3,0.001]
[1755210661658,2.32014941,4525.4,4525.3,0.001]
[1755210662275,2.20962259,4525.7,4525.3,0.001]
[1755210662569,2.20974941,4525.4,4525.3,0.001]
[1755210663150,2.20970348,4525.5,4525.3,0.001]
[1755210663746,0.1104,4525.7,4525.3,0.001]
[1755210663945,2.20950529,4525.9,4525.4,1.7588]
[1755210664265,0.1104,4526.0,4525.5,1.7588]
[1755210664470,2.20960408,4525.7,4525.5,1.7588]
[1755210664660,2.20960408,4525.7,4525.3,0.001]
[1755210664661,2.2096729,4525.6,4525.3,0.001]
[1755210664857,0.1104,4526.0,4525.3,0.001]
[1755210665062,2.20974941,4525.4,4525.3,0.001]
[1755210666382,2.20970483,4525.5,4525.3,0.001]
[1755210666566,0.1104,4525.6,4525.3,0.001]
[1755210666741,0.1104,4525.6,4525.4,1.7588]
[1755210666943,6.507,4526.5,4525.5,1.7588]
[1755210667163,2.20937015,4526.2,4525.6,1.7588]
[1755210667356,5.31971797,4526.3,4525.6,1.3123]
[1755210667563,0.1104,4526.3,4525.7,2.65607664]
[1755210667889,2.20917369,4526.6,4526.1,0.1104]
[1755210668188,2.20916361,4526.6,4526.1,0.5569]
[1755210668596,2.20916361,4526.6,4526.2,1.7588]
[1755210668881,0.1104,4526.7,4526.2,1.3123]
[1755210669168,0.1104,4526.7,4526.3,0.4465]
[1755210669584,0.002,4526.9,4526.4,1.7588]
[1755210669793,2.20913815,4526.7,4526.5,0.1104]
[1755210670082,2.21105735,4526.9,4526.5,0.1104]
[1755210670310,2.20906726,4526.8,4526.5,0.1104]
[1755210670508,0.002,4526.9,4526.6,1.78089163]
[1755210670681,0.002,4526.9,4526.7,0.1104]
[1755210670868,0.002,4526.9,4526.7,4.07827052]
[1755210671072,0.002,4526.9,4526.8,1.7588]
[1755210673017,0.002,4526.9,4526.8,4.517866]
[1755210673315,0.002,4526.9,4526.8,4.628266]
[1755210673606,0.002,4526.9,4526.8,5.66260635]
[1755210674119,0.002,4526.9,4526.8,2.4192]
[1755210674279,0.002,4526.9,4526.8,8.134266]
[1755210674802,0.002,4527.4,4527.3,2.75882203]
[1755210675109,0.002,4527.4,4527.3,6.26482203]
[1755210675411,0.002,4527.4,4527.3,8.13402203]
[1755210676212,0.002,4527.4,4527.3,9.16831362]
[1755210676716,1e-08,4527.4,4527.3,9.16831362]
[1755210676935,1e-08,4527.8,4527.7,2.75862689]
[1755210677415,1e-08,4527.8,4527.7,8.13282689]
[1755210677888,1e-08,4527.8,4527.7,4.62782689]
[1755210678079,1e-08,4527.8,4527.7,8.81647943]
[1755210680232,1e-08,4527.8,4527.7,5.31147943]
[1755210680437,1e-08,4527.8,4527.7,8.81547943]
[1755210680596,1e-08,4527.8,4527.7,7.50317943]
[1755210681004,1e-08,4527.8,4527.7,2.31902689]
[1755210681312,1e-08,4527.8,4527.7,6.37302689]
[1755210683038,1e-08,4527.8,4527.7,6.80522689]
[1755210683218,1e-08,4527.8,4527.7,6.37302689]
[1755210684203,1e-08,4527.8,4527.7,8.16552689]
[1755210684557,1e-08,4527.8,4527.7,9.2029493]
[1755210686633,1e-08,4527.8,4527.7,13.4529493]
[1755210687708,0.002,4528.8,4528.4,0.55]
[1755210687909,0.002,4528.8,4528.7,2.7581392]
[1755210688150,0.002,4528.8,4528.7,6.3715392]
[1755210688353,0.002,4528.8,4528.7,7.40876679]
[1755210688656,0.002,4528.8,4528.7,9.20126679]
[1755210688806,0.002,4528.8,4528.7,3.90576679]
[1755210689007,0.002,4528.8,4528.7,6.3715392]
[1755210690746,0.002,4528.8,4528.7,8.1640392]
[1755210691155,0.1104,4530.0,4529.9,2.20755425]
[1755210691448,1.3157,4531.1,4530.1,2.20741627]
[1755210691449,1.4261,4531.1,4530.1,2.20741627]
[1755210691656,3.52268227,4531.1,4530.3,2.20735124]
[1755210691859,1.3157,4531.1,4530.6,0.1104]
[1755210692157,1.3157,4531.1,4530.7,3.502]
[1755210692364,1.7504,4531.1,4530.7,3.502]
[1755210692944,2.20707114,4530.9,4530.7,3.502]
[1755210693444,0.4347,4531.0,4530.7,3.502]
[1755210694135,3.52270019,4531.1,4530.7,3.502]
[1755210694541,2.2069288,4531.2,4530.7,3.502]
[1755210695130,2.31728093,4531.3,4530.7,3.502]
[1755210695357,2.20692449,4531.2,4530.7,3.502]
[1755210695721,2.31728017,4531.3,4530.7,3.502]
[1755210696060,3.0,4531.4,4531.1,0.1104]
[1755210696218,3.0,4531.4,4531.2,3.502]
[1755210696557,6.95726195,4531.4,4531.2,3.502]
[1755210696752,4.7504,4531.4,4531.2,3.502]
[1755210697121,3.0,4531.4,4531.2,3.502]
[1755210697345,2.20681969,4531.5,4531.2,3.502]
[1755210697822,2.2068722,4531.3,4531.2,3.502]
[1755210698148,2.6414198,4531.7,4531.2,3.502]
[1755210698447,1.7504,4531.6,4531.2,3.502]
[1755210698753,2.20683308,4531.4,4531.2,3.502]
[1755210698951,2.20683308,4531.4,4531.1,0.1104]
[1755210698952,2.2069209,4531.2,4531.1,0.1104]
[1755210699153,2.20706702,4530.9,4530.8,3.501]
[1755210699352,0.47285044,4531.2,4530.8,3.501]
[1755210699658,2.20692731,4531.2,4530.9,0.1104]
[1755210699855,0.90755044,4531.6,4530.9,0.1104]
[1755210700018,0.4347,4531.6,4530.9,0.1104]
[1755210700330,2.20691087,4531.3,4530.9,0.1104]
[1755210700528,2.20682989,4531.4,4530.9,0.1104]
[1755210700930,2.67959853,4531.6,4530.9,0.1104]
[1755210701254,0.47285044,4531.8,4531.2,0.1104]
[1755210701420,2.20663166,4531.8,4531.2,0.1104]
[1755210701852,0.002,4531.9,4531.2,3.6104]
[1755210702056,2.20662871,4531.8,4531.7,0.1104]
[1755210702235,0.4347,4531.8,4531.2,3.5]
[1755210702431,0.47285044,4531.7,4530.8,3.5]
[1755210702643,0.47285044,4531.6,4530.8,3.5]
[1755210702946,2.20698147,4531.1,4530.8,3.5]
[1755210703145,2.22325044,4531.5,4530.8,3.5]
[1755210703328,0.47285044,4531.6,4531.1,0.1104]
[1755210703523,0.47285044,4531.5,4531.1,0.1104]
[1755210703726,0.47285044,4531.4,4531.1,0.1104]
[1755210704083,2.20702831,4531.0,4530.8,3.499]
[1755210704270,2.20702831,4531.0,4530.9,0.1104]
[1755210704652,2.67987875,4531.0,4530.9,0.1104]
[1755210704857,2.20702831,4531.0,4530.9,0.1104]
[1755210705235,2.67987875,4531.0,4530.9,0.1104]
[1755210705441,2.2069791,4531.1,4530.9,0.1104]
[1755210705641,2.67986875,4531.0,4530.9,0.1104]
[1755210705865,0.47285044,4531.0,4530.9,0.1104]
[1755210706568,0.47285044,4531.2,4530.9,0.1104]
[1755210706750,0.70032999,4531.5,4530.9,0.1104]
[1755210706751,0.47285044,4531.1,4530.9,0.5426]
[1755210706927,0.47285044,4531.4,4531.0,0.4322]
[1755210707127,0.47285044,4531.3,4531.0,1.7925]
[1755210707357,0.45845044,4531.6,4531.0,1.7925]
[1755210707532,0.002,4531.9,4531.1,0.55]
[1755210707733,0.002,4531.9,4531.6,0.1104]
[1755210707962,0.002,4531.9,4531.7,3.499]
[1755210709777,0.002,4531.9,4531.8,3.498]
[1755210710112,2.20858002,4531.9,4531.8,3.498]
[1755210710457,0.002,4531.9,4531.6,0.1104]
[1755210710660,0.002,4531.9,4531.7,3.498]
[1755210711256,0.002,4531.9,4531.8,1.9029]
[1755210711456,0.002,4531.9,4531.8,3.6084]
[1755210711795,0.002,4531.9,4531.8,0.1104]
[1755210711973,0.002,4531.9,4531.8,3.6084]
[1755210712367,0.002,4531.9,4531.8,0.5532]
[1755210712569,0.002,4531.9,4531.8,0.1104]
[1755210712884,2.20858002,4531.9,4531.3,3.498]
[1755210713189,2.2066774,4531.7,4531.4,0.1104]
[1755210713392,0.59396077,4531.9,4531.4,0.1104]
[1755210713567,0.59396077,4531.9,4531.4,0.5532]
[1755210713906,0.59196077,4531.8,4531.4,0.1104]
[1755210714134,2.80054231,4531.9,4531.5,0.4428]
[1755210714411,2.80054231,4531.9,4531.3,3.498]
[1755210714412,0.59396077,4531.9,4531.7,0.1104]
[1755210714710,0.59396077,4531.9,4531.8,3.498]
[1755210715217,0.002,4531.9,4531.8,3.498]
[1755210715514,0.002,4531.9,4531.8,5.70462871]
[1755210715676,0.002,4531.9,4531.8,3.498]
[1755210716107,0.002,4531.9,4531.8,7.58332871]
[1755210716267,0.002,4531.9,4531.8,5.3767]
[1755210719316,0.002,4531.9,4531.8,4.0512]
[1755210719494,0.47689933,4531.9,4531.8,4.0512]
[1755210721305,1.06979262,4531.9,4531.8,4.0512]
[1755210721515,0.47689933,4531.9,4531.8,4.0512]
[1755210721807,0.47689933,4531.9,4531.8,5.3767]
[1755210722016,0.47689933,4531.9,4531.8,7.58332871]
[1755210722311,0.47689933,4531.9,4531.8,3.6064]
[1755210722821,2.68347935,4531.9,4530.9,2.2070636]
[1755210723121,1.06912749,4531.8,4531.5,0.1104]
[1755210723414,1.06912749,4531.8,4530.7,0.4428]
[1755210723415,2.20685111,4531.4,4531.2,0.1104]
[1755210723619,0.59422816,4531.5,4531.3,3.496]
[1755210723763,0.47545018,4531.4,4531.3,3.496]
[1755210723964,0.47545018,4531.4,4531.3,7.4711722]
[1755210724202,0.47545018,4531.8,4531.7,2.2066774]
[1755210724414,0.47545018,4531.8,4531.7,7.5813774]
[1755210725066,0.002,4531.9,4531.8,2.20662871]
[1755210725704,0.47745018,4531.9,4531.8,2.64942871]
[1755210725900,0.002,4531.9,4531.7,0.1104]
[1755210726415,0.002,4531.9,4531.8,3.6054]
[1755210726806,0.002,4531.9,4531.8,5.81202871]
[1755210727031,0.002,4531.9,4531.8,7.58032871]
[1755210727543,0.002,4531.9,4531.8,8.13032871]
[1755210727835,0.002,4531.9,4531.8,9.16403389]
[1755210732139,0.9502869,4534.2,4533.4,2.20584874]
[1755210732140,2.3158788,4534.2,4533.4,2.20584874]
[1755210732326,0.1104,4534.2,4533.5,5.69979884]
[1755210732530,3.1317623,4534.3,4533.6,0.1104]
[1755210732825,3.1317623,4534.3,4533.7,3.494]
[1755210733007,3.92635018,4534.3,4533.7,5.69970047]
[1755210733207,3.92635018,4534.3,4533.7,3.494]
[1755210733408,3.47545018,4534.3,4533.7,3.494]
[1755210733706,3.47545018,4534.3,4534.0,0.1104]
[1755210733922,3.47545018,4534.3,4533.2,2.20590939]
[1755210733923,2.65636072,4534.2,4534.1,3.494]
[1755210734242,4.5276109,4534.2,4534.1,3.494]
[1755210734413,4.52762272,4534.2,4532.8,2.20613144]
[1755210734609,0.1104,4534.1,4533.4,0.1104]
[1755210734801,2.7666294,4534.5,4533.8,0.1104]
[1755210734998,0.5613,4534.5,4533.9,3.493]
[1755210735202,2.20554689,4534.1,4533.9,3.493]
[1755210736640,2.20553283,4534.1,4533.9,3.493]
[1755210736819,2.205558,4534.0,4533.9,3.493]
[1755210737221,2.20552334,4534.1,4533.9,3.493]
[1755210737744,2.205558,4534.0,4533.9,3.493]
[1755210738343,0.47545018,4534.2,4533.9,3.493]
[1755210738535,4.052258,4534.0,4533.9,3.493]
[1755210738840,1.8467,4534.0,4533.6,0.1104]
[1755210739063,2.20570395,4533.7,4533.6,0.1104]
[1755210739273,4.05240395,4533.7,4533.6,0.1104]
[1755210739569,2.2059127,4533.3,4532.6,2.20621509]
[1755210739779,2.20580125,4533.5,4532.9,0.1104]
[1755210739951,2.20580125,4533.5,4533.0,3.492]
[1755210740268,0.1104,4533.6,4533.0,3.492]
[1755210740269,2.20586678,4533.4,4533.0,3.492]
[1755210740470,0.1104,4533.6,4532.9,0.1104]
[1755210740669,0.4509,4533.5,4533.0,3.492]
[1755210740856,3.0,4533.8,4532.1,7.50546079]
[1755210740857,3.0,4533.3,4532.7,3.492]
[1755210741166,0.1104,4533.1,4532.5,3.492]
[1755210741367,2.20633966,4532.4,4532.1,5.299]
[1755210741672,5.20599589,4533.1,4531.0,0.001]
[1755210741673,1.8258,4532.3,4531.8,3.6024]
[1755210742075,2.20651909,4532.1,4531.8,3.6024]
[1755210742278,0.4585,4532.0,4531.0,0.001]
[1755210742573,2.20662871,4531.8,4531.2,3.6024]
[1755210742775,2.2066774,4531.7,4531.2,3.6024]
[1755210743174,2.20681386,4531.5,4531.2,3.6024]
[1755210743377,2.20662871,4531.8,4531.2,0.1104]
[1755210743552,2.20662871,4531.8,4531.0,0.001]
[1755210743553,2.20696961,4531.1,4531.0,0.001]
[1755210743742,2.31736961,4531.1,4531.0,0.001]
[1755210744075,4.14316961,4531.1,4531.0,0.001]
[1755210744579,2.31736961,4531.1,4531.0,0.001]
[1755210745340,0.1104,4531.1,4531.0,0.001]
[1755210745761,2.31720554,4531.5,4531.0,0.001]
[1755210745954,2.20682921,4531.4,4531.0,0.001]
[1755210746155,2.20688028,4531.3,4531.0,0.001]
[1755210746683,0.4585,4532.6,4531.1,1.716]
[1755210746855,0.1104,4532.2,4531.2,0.1104]
[1755210747055,1.3673,4532.3,4531.2,3.491]
[1755210747369,0.1104,4532.2,4531.5,2.20675815]
[1755210747545,2.20639528,4532.3,4531.5,2.20675815]
[1755210747751,2.20639528,4532.3,4531.8,0.1104]
[1755210748275,2.31672232,4532.5,4531.8,3.6024]
[1755210748462,3.492,4533.3,4531.9,0.4414]
[1755210748668,1.18332305,4534.2,4531.3,0.55]
[1755210748669,2.20599589,4533.1,4532.0,3.492]
[1755210748958,0.1104,4533.1,4532.4,0.1104]
[1755210749389,0.5689,4533.6,4532.9,0.1104]
[1755210749707,2.20604456,4533.0,4532.9,0.1104]
[1755210750056,2.20604456,4533.0,4532.6,3.491]
[1755210750299,2.31644456,4533.0,4532.6,3.491]
[1755210750672,2.20609513,4532.9,4532.5,3.491]
[1755210750905,2.20609513,4532.9,4532.4,0.1104]
[1755210750906,2.20609513,4532.9,4532.6,3.491]
[1755210751053,0.1104,4533.0,4532.6,3.491]
[1755210751591,2.20589743,4533.4,4532.6,3.491]
[1755210751790,2.20589743,4533.4,4532.7,0.1104]
[1755210751791,2.31629743,4533.4,4532.7,0.1104]
[1755210751996,2.20600464,4533.1,4532.7,0.1104]
[1755210752383,2.20598334,4533.2,4532.7,0.1104]
[1755210752578,2.20597828,4533.2,4532.7,0.1104]
[1755210752783,2.31626082,4533.4,4532.7,0.1104]
[1755210752971,2.31626082,4533.4,4532.8,1.716]
[1755210752972,0.1104,4533.4,4532.8,1.716]
[1755210753178,2.20757486,4534.0,4532.9,2.20609322]
[1755210753179,0.1104,4533.6,4532.9,2.20609322]
[1755210753373,2.31616417,4533.6,4532.8,3.92212952]
[1755210753605,0.1104,4533.6,4532.8,1.716]
[1755210753764,0.1104,4533.6,4532.7,0.1104]
[1755210753765,2.20593485,4533.3,4532.9,3.491]
[1755210754270,0.4585,4533.9,4531.7,0.4414]
[1755210754471,0.1104,4533.1,4532.4,0.1104]
[1755210754672,2.20614754,4532.8,4532.5,3.491]
[1755210755226,2.20614754,4532.8,4532.4,0.1104]
[1755210755227,0.1104,4533.1,4532.4,0.1104]
[1755210755362,0.4585,4532.7,4532.1,3.491]
[1755210755683,2.20623924,4532.6,4532.1,3.491]
[1755210755861,2.20642217,4532.3,4532.1,3.491]
[1755210756064,2.20644814,4532.2,4532.0,3.6004]
[1755210756270,0.5689,4532.7,4530.9,0.4414]
[1755210756271,2.20659081,4531.9,4530.9,0.4414]
[1755210756478,2.20648264,4532.1,4531.5,0.1104]
[1755210756784,2.31683925,4532.2,4531.5,0.1104]
[1755210756979,0.1104,4532.2,4531.5,0.1104]
[1755210757185,2.3168806,4532.2,4531.5,0.1104]
[1755210757424,0.1104,4532.2,4531.5,0.1104]
[1755210757597,1.05272816,4533.5,4531.7,0.55]
[1755210757921,0.1104,4533.2,4532.2,0.55]
[1755210758077,0.1104,4533.2,4532.7,2.20615145]
[1755210758279,0.1104,4533.2,4532.8,0.4414]
[1755210758507,2.20578912,4533.6,4533.1,0.1104]